bitfinex-derivatives/quotes_BTCF0:USTF0_20241218
["timestamp","ask_amount","ask_price","bid_price","bid_amount"]
[1734539517338,0.84350379,103850.0,103840.0,6.945e-05]
[1734539517539,0.048163,103840.0,103830.0,0.05955351]
[1734539517839,0.559363,103840.0,103830.0,0.05955351]
[1734539518635,0.559363,103840.0,103830.0,0.05962769]
[1734539518838,0.409958,103850.0,103830.0,0.19317348]
[1734539519037,0.001,103840.0,103830.0,0.19317348]
[1734539519236,0.001,103840.0,103830.0,0.70497348]
[1734539520141,0.001,103840.0,103830.0,0.66043746]
[1734539520732,0.001,103840.0,103830.0,2.16043746]
[1734539520929,0.001,103840.0,103830.0,1.8608]
[1734539521132,0.3608,103820.0,103810.0,0.10999134]
[1734539521332,0.048181,103800.0,103790.0,0.0005]
[1734539521532,0.94780054,103800.0,103790.0,0.0005]
[1734539521734,0.04819,103780.0,103770.0,1.5]
[1734539521940,0.76979,103780.0,103770.0,1.53027009]
[1734539522136,0.85879977,103780.0,103770.0,1.50009332]
[1734539522539,0.76979,103780.0,103770.0,1.50009332]
[1734539522838,0.0482,103760.0,103750.0,0.01]
[1734539523140,0.7698,103760.0,103750.0,1.51]
[1734539523835,0.7698,103760.0,103750.0,0.01009818]
[1734539524035,0.9035734,103760.0,103750.0,0.01009818]
[1734539524544,0.9045734,103760.0,103750.0,0.01609818]
[1734539524746,0.91294368,103760.0,103750.0,0.01609818]
[1734539524937,0.91394368,103760.0,103750.0,0.00932656]
[1734539525245,1.04771708,103760.0,103750.0,0.00932656]
[1734539525430,1.04671708,103760.0,103750.0,0.00032656]
[1734539525632,0.99951708,103760.0,103740.0,1.5429463]
[1734539525940,0.409004,103750.0,103740.0,0.0429463]
[1734539526141,0.3608,103750.0,103740.0,0.04305114]
[1734539526442,0.50394368,103760.0,103750.0,0.048204]
[1734539526633,0.50494368,103760.0,103750.0,0.048204]
[1734539527036,0.3628,103760.0,103750.0,0.048204]
[1734539527239,0.3618,103760.0,103750.0,0.048204]
[1734539527840,0.001,103760.0,103750.0,0.1819774]
[1734539528236,0.002,103760.0,103750.0,0.1819774]
[1734539528437,0.003,103760.0,103750.0,0.2566774]
[1734539528838,0.003,103760.0,103750.0,2.1174774]
[1734539529742,0.003,103760.0,103750.0,1.622904]
[1734539530738,0.3638,103760.0,103750.0,1.622904]
[1734539530937,0.003,103760.0,103750.0,1.7566774]
[1734539531138,0.003,103760.0,103750.0,2.1174774]
[1734539531343,0.003,103760.0,103750.0,1.7566774]
[1734539531850,0.003,103760.0,103750.0,1.622904]
[1734539532147,0.003,103760.0,103750.0,1.548204]
[1734539532148,0.3638,103760.0,103750.0,1.548204]
[1734539532535,0.003,103760.0,103750.0,1.6819774]
[1734539532740,0.003,103760.0,103750.0,1.548204]
[1734539534547,0.003,103760.0,103750.0,1.69310894]
[1734539534745,0.003,103760.0,103750.0,2.05390894]
[1734539535654,0.003,103760.0,103750.0,2.12830894]
[1734539537747,0.3608,103780.0,103750.0,2.12830894]
[1734539537952,7.43e-05,103790.0,103780.0,0.04819]
[1734539538158,7.43e-05,103790.0,103780.0,0.5427634]
[1734539538351,7.43e-05,103790.0,103780.0,1.6819634]
[1734539538745,7.43e-05,103790.0,103780.0,1.54819]
[1734539540554,0.0010743,103790.0,103780.0,1.55719]
[1734539540746,0.0010743,103790.0,103780.0,1.56019]
[1734539544042,0.3618743,103790.0,103780.0,1.57151974]
[1734539545956,0.3618743,103790.0,103780.0,0.07151974]
[1734539546550,0.4290743,103790.0,103780.0,0.07151974]
[1734539547052,0.57121798,103790.0,103780.0,0.07151974]
[1734539548549,0.61940398,103790.0,103780.0,0.012]
[1734539548756,1.11977738,103790.0,103780.0,0.012]
[1734539548964,0.98600398,103790.0,103780.0,0.012]
[1734539549861,0.9776337,103790.0,103750.0,0.09929412]
[1734539550064,0.3608,103760.0,103750.0,0.09929412]
[1734539550255,0.3608,103760.0,103750.0,1.59929412]
[1734539550559,0.50295749,103760.0,103750.0,1.59929412]
[1734539551059,0.50295749,103760.0,103750.0,1.74206752]
[1734539551654,0.50295749,103760.0,103750.0,1.73806752]
[1734539552066,0.50295749,103760.0,103750.0,1.69344193]
[1734539552465,0.14215749,103760.0,103750.0,1.69344193]
[1734539552857,0.14215749,103760.0,103750.0,1.71275599]
[1734539553363,0.14215749,103760.0,103750.0,1.71987404]
[1734539554362,0.08545302,103760.0,103750.0,1.71987404]
[1734539555061,0.08545302,103760.0,103750.0,2.08067404]
[1734539555270,0.08545302,103760.0,103750.0,0.64997404]
[1734539555465,0.07845302,103760.0,103750.0,0.64997404]
[1734539555966,0.07779025,103760.0,103750.0,2.14997404]
[1734539557063,0.63827766,103790.0,103780.0,0.04819]
[1734539557665,0.63827766,103790.0,103780.0,1.54819]
[1734539558362,0.66670915,103790.0,103780.0,1.54819]
[1734539558669,0.71589515,103790.0,103780.0,1.54819]
[1734539559766,0.71789515,103790.0,103780.0,1.54819]
[1734539561060,0.80704296,103790.0,103780.0,0.04819]
[1734539561770,0.80704296,103790.0,103780.0,0.05546816]
[1734539562067,0.83351154,103790.0,103780.0,0.05546816]
[1734539562262,0.74436373,103790.0,103770.0,0.02792219]
[1734539562461,0.3608,103780.0,103770.0,0.06642895]
[1734539562662,0.40899,103780.0,103770.0,0.06642895]
[1734539563071,0.40899,103780.0,103770.0,0.02792219]
[1734539563267,0.49813781,103780.0,103770.0,0.02792219]
[1734539563866,0.49813781,103780.0,103760.0,0.048196]
[1734539563867,0.048198,103770.0,103760.0,0.05544333]
[1734539564162,0.408998,103770.0,103760.0,0.09391601]
[1734539564976,0.408998,103770.0,103760.0,0.05544333]
[1734539567064,0.408998,103770.0,103760.0,0.09391601]
[1734539567269,0.408998,103770.0,103760.0,0.05544333]
[1734539567664,0.60605556,103770.0,103760.0,0.048197]
[1734539567864,0.0482,103760.0,103750.0,0.05109412]
[1734539568071,0.56924781,103760.0,103740.0,0.09492699]
[1734539568278,0.56465181,103750.0,103740.0,0.0395799]
[1734539568573,0.56465181,103750.0,103740.0,0.00060484]
[1734539568771,0.86465181,103750.0,103720.0,1.5]
[1734539568979,0.048218,103720.0,103710.0,0.08864232]
[1734539569168,0.49816581,103720.0,103710.0,0.00144626]
[1734539569473,0.94286581,103720.0,103710.0,0.04208932]
[1734539569866,0.94295947,103720.0,103710.0,0.04219013]
[1734539570067,0.94295947,103720.0,103710.0,0.00154707]
[1734539570277,0.048223,103710.0,103700.0,0.16465887]
[1734539570473,0.409023,103710.0,103700.0,0.16465887]
[1734539571173,0.43589366,103720.0,103710.0,0.048223]
[1734539571569,0.60625812,103720.0,103710.0,0.048223]
[1734539571767,0.60625812,103720.0,103710.0,1.548223]
[1734539571969,0.53125812,103720.0,103710.0,1.58886606]
[1734539572271,0.53125812,103720.0,103710.0,1.67801387]
[1734539572471,0.17045812,103720.0,103710.0,1.548223]
[1734539572677,0.25562502,103720.0,103710.0,1.548223]
[1734539572879,0.25562502,103720.0,103710.0,1.551223]
[1734539573170,0.25562502,103720.0,103710.0,2.09031862]
[1734539573374,0.25562502,103720.0,103710.0,2.07057081]
[1734539573673,9.366e-05,103720.0,103710.0,2.11121387]
[1734539573876,9.366e-05,103720.0,103710.0,2.07057081]
[1734539574068,9.366e-05,103720.0,103710.0,1.620623]
[1734539574268,9.366e-05,103720.0,103710.0,1.75445466]
[1734539574667,9.366e-05,103720.0,103710.0,2.11525466]
[1734539575074,9.366e-05,103720.0,103710.0,2.47129466]
[1734539576875,9.366e-05,103720.0,103710.0,0.97129466]
[1734539577285,9.366e-05,103720.0,103710.0,2.337963]
[1734539577672,9.366e-05,103720.0,103710.0,2.47179466]
[1734539578184,9.366e-05,103720.0,103710.0,2.47129466]
[1734539578780,9.366e-05,103720.0,103710.0,2.30657168]
[1734539579282,9.366e-05,103720.0,103710.0,1.94627168]
[1734539579479,9.366e-05,103720.0,103710.0,2.30707168]
[1734539579979,9.366e-05,103720.0,103710.0,2.268563]
[1734539580185,9.366e-05,103720.0,103710.0,1.907263]
[1734539580579,9.366e-05,103720.0,103710.0,2.268063]
[1734539580775,9.366e-05,103720.0,103710.0,1.907263]
[1734539581279,9.366e-05,103720.0,103710.0,1.907763]
[1734539581475,0.36089366,103720.0,103710.0,0.407763]
[1734539581987,0.40911166,103720.0,103710.0,0.0035]
[1734539582175,0.36089366,103720.0,103710.0,0.051223]
[1734539582379,9.366e-05,103720.0,103710.0,0.051223]
[1734539583988,9.366e-05,103720.0,103710.0,0.07061755]
[1734539585589,0.36089366,103720.0,103710.0,0.07061755]
[1734539585988,0.40911166,103720.0,103710.0,0.07061755]
[1734539586292,0.40911166,103720.0,103710.0,0.003]
[1734539586887,0.40911166,103720.0,103710.0,0.051223]
[1734539587887,0.5225323,103720.0,103710.0,0.051223]
[1734539588586,0.1135143,103720.0,103710.0,0.051223]
[1734539588791,0.4743143,103720.0,103710.0,0.051223]
[1734539588986,0.4743143,103720.0,103710.0,1.551223]
[1734539589193,0.1135143,103720.0,103710.0,1.551223]
[1734539590282,0.4743143,103720.0,103710.0,1.551223]
[1734539592184,0.36089366,103720.0,103710.0,1.551223]
[1734539592782,9.366e-05,103720.0,103710.0,1.551223]
[1734539593301,9.366e-05,103720.0,103710.0,2.04585466]
[1734539593502,9.366e-05,103720.0,103710.0,2.11395466]
[1734539593709,0.25519644,103730.0,103710.0,2.15246334]
[1734539593900,0.25519644,103730.0,103720.0,0.117018]
[1734539594401,0.52243064,103740.0,103730.0,0.048214]
[1734539594797,0.52253804,103740.0,103730.0,0.048214]
[1734539595199,0.66431384,103740.0,103730.0,0.048214]
[1734539595404,0.61610384,103740.0,103730.0,0.048214]
[1734539595704,0.25730384,103740.0,103730.0,0.49821742]
[1734539595901,0.4253274,103770.0,103730.0,0.87771552]
[1734539596217,0.19848612,103780.0,103760.0,0.49820342]
[1734539596500,0.6646072,103790.0,103780.0,0.04819]
[1734539596501,0.52644933,103790.0,103780.0,0.04819]
[1734539596802,0.57474696,103790.0,103780.0,0.04829172]
[1734539597108,0.57474696,103790.0,103780.0,0.00010172]
[1734539598106,0.57674696,103790.0,103780.0,0.04829172]
[1734539598909,0.57774696,103790.0,103780.0,0.04829172]
[1734539599503,0.48854354,103790.0,103780.0,0.04829172]
[1734539600216,0.36585754,103790.0,103780.0,0.04829172]
[1734539600706,0.00505754,103790.0,103780.0,0.04829172]
[1734539601409,0.36585754,103790.0,103780.0,0.04829172]
[1734539602598,0.50324696,103790.0,103780.0,0.00010172]
[1734539602805,0.41404354,103790.0,103780.0,0.04829172]
[1734539604717,0.41404754,103790.0,103780.0,0.04829172]
[1734539604915,0.50325096,103790.0,103780.0,0.00010172]
[1734539605714,0.41404754,103790.0,103780.0,0.04829672]
[1734539606915,0.41404754,103790.0,103780.0,0.04814904]
[1734539607716,0.41404754,103790.0,103780.0,0.04823053]
[1734539608012,0.36585754,103790.0,103780.0,0.04823053]
[1734539608210,0.36585754,103790.0,103780.0,0.12013053]
[1734539608713,0.36585754,103790.0,103780.0,1.62013053]
[1734539609711,0.00505754,103790.0,103780.0,1.62013053]
[1734539609909,0.00505754,103790.0,103780.0,2.07013395]
[1734539610105,0.00361163,103790.0,103780.0,2.07013395]
[1734539610415,0.00361163,103790.0,103780.0,2.14353395]
[1734539610606,0.36224534,103830.0,103820.0,0.048172]
[1734539610910,0.00144534,103830.0,103820.0,0.13737542]
[1734539611217,0.00144534,103830.0,103820.0,1.99817542]
[1734539611603,0.00144534,103830.0,103820.0,1.63737542]
[1734539611812,0.00244534,103830.0,103820.0,1.63737542]
[1734539612213,0.00444534,103830.0,103820.0,1.63737542]
[1734539612809,0.36524534,103830.0,103820.0,1.5]
[1734539613010,0.36524534,103830.0,103810.0,0.404095]
[1734539613011,0.048172,103820.0,103810.0,0.404095]
[1734539613209,0.3608,103820.0,103810.0,0.404095]
[1734539613603,0.3608,103820.0,103810.0,0.53762975]
[1734539613813,0.48481434,103830.0,103820.0,0.048172]
[1734539614010,0.36424534,103830.0,103820.0,0.048172]
[1734539614217,0.36274534,103830.0,103820.0,0.048172]
[1734539614905,0.36374534,103830.0,103820.0,0.048172]
[1734539615307,0.36474534,103830.0,103820.0,0.048172]
[1734539615714,0.00394534,103830.0,103820.0,0.18170675]
[1734539616009,0.00394534,103830.0,103820.0,0.54250675]
[1734539616210,0.00394534,103830.0,103820.0,0.18170675]
[1734539616607,0.00394534,103830.0,103820.0,0.10999668]
[1734539616809,0.00394534,103830.0,103820.0,0.16736618]
[1734539618917,0.00394534,103830.0,103820.0,0.0573695]
[1734539619122,0.36474534,103830.0,103820.0,0.0573695]
[1734539619926,0.00394534,103830.0,103820.0,0.0573695]
[1734539620712,0.36474534,103830.0,103820.0,0.0573695]
[1734539620915,0.00394534,103830.0,103820.0,0.19090425]
[1734539622523,0.0025,103830.0,103820.0,0.19090425]
[1734539623123,0.0025,103830.0,103820.0,0.55170425]
[1734539623319,0.002,103830.0,103820.0,0.61930425]
[1734539624426,0.003,103830.0,103820.0,0.61930425]
[1734539625013,0.001,103830.0,103820.0,2.49260425]
[1734539625429,0.00056823,103840.0,103830.0,0.048167]
[1734539625627,0.00056823,103840.0,103830.0,0.54250175]
[1734539625924,0.54056143,103860.0,103850.0,0.048158]
[1734539626232,0.54056143,103860.0,103850.0,0.18169275]
[1734539626829,0.68256443,103860.0,103850.0,0.15789337]
[1734539627027,0.28452186,103860.0,103850.0,0.81869337]
[1734539627219,0.42562054,103880.0,103870.0,0.048149]
[1734539627420,0.42562054,103880.0,103870.0,0.54248375]
[1734539628326,0.42562054,103880.0,103870.0,0.54256637]
[1734539628927,0.00049013,103890.0,103880.0,0.048144]
[1734539629129,0.00049013,103890.0,103880.0,0.54247875]
[1734539629423,0.00049013,103890.0,103880.0,0.048144]
[1734539629625,0.40942913,103890.0,103870.0,8.262e-05]
[1734539629825,0.3628,103880.0,103870.0,0.04823162]
[1734539630021,0.002,103880.0,103870.0,0.04823162]
[1734539630214,0.3608,103880.0,103870.0,0.04823162]
[1734539630414,0.36429013,103890.0,103880.0,0.048144]
[1734539630822,0.36229013,103890.0,103880.0,0.048144]
[1734539631621,0.36429013,103890.0,103870.0,2.0214]
[1734539631821,0.36429013,103890.0,103880.0,0.048144]
[1734539632219,0.36329013,103890.0,103880.0,0.048144]
[1734539632526,0.048153,103870.0,103810.0,0.408974]
[1734539632728,0.49433475,103850.0,103840.0,0.00011262]
[1734539632930,0.7216,103850.0,103840.0,0.00011262]
[1734539633228,0.841558,103850.0,103840.0,0.00011262]
[1734539633532,0.048163,103840.0,103830.0,1.51890668]
[1734539633727,0.408963,103840.0,103830.0,1.51890668]
[1734539634130,0.408963,103840.0,103830.0,1.5]
[1734539634524,0.408963,103840.0,103830.0,1.50007005]
[1734539634728,0.408963,103840.0,103830.0,1.50107005]
[1734539636931,0.408963,103840.0,103830.0,0.00107005]
[1734539637126,0.408963,103840.0,103830.0,0.04923705]
[1734539637821,0.3608,103840.0,103830.0,0.04923705]
[1734539639030,0.3608,103840.0,103830.0,1.54923705]
[1734539639334,0.4326,103850.0,103840.0,0.048163]
[1734539639523,0.3608,103850.0,103840.0,0.048163]
[1734539640533,0.3608,103850.0,103840.0,0.18169775]
[1734539640925,0.001,103850.0,103840.0,0.54249775]
[1734539641536,0.002,103850.0,103840.0,0.54249775]
[1734539642231,0.3628,103850.0,103840.0,0.048163]
[1734539642629,0.002,103850.0,103840.0,0.048163]
[1734539644524,0.002,103850.0,103840.0,0.54249775]
[1734539645226,0.002,103850.0,103840.0,2.04249775]
[1734539646023,0.002,103850.0,103840.0,2.35159237]
[1734539646429,0.002,103850.0,103840.0,2.42709237]
[1734539647435,0.002,103850.0,103840.0,2.12709237]
[1734539647923,0.002,103850.0,103840.0,0.19079237]
[1734539648334,0.002,103850.0,103840.0,0.55159237]
[1734539648529,0.002,103850.0,103840.0,2.05159237]
[1734539648733,0.002,103850.0,103840.0,0.55159237]
[1734539649033,0.002,103850.0,103840.0,0.05725762]
[1734539649234,0.002,103850.0,103840.0,1.55725762]
[1734539649425,0.410958,103850.0,103840.0,0.00909462]
[1734539649631,0.550358,103850.0,103830.0,0.04823605]
[1734539649830,0.3608,103840.0,103830.0,0.04823605]
[1734539650223,0.3608,103840.0,103830.0,0.1817708]
[1734539650534,0.3628,103850.0,103840.0,0.048163]
[1734539650937,0.3628,103850.0,103840.0,0.18169775]
[1734539651523,0.3628,103850.0,103840.0,0.048163]
[1734539651928,0.3618,103850.0,103840.0,0.048163]
[1734539652128,0.3608,103860.0,103850.0,0.048157]
[1734539652330,0.79325906,103870.0,103860.0,0.048153]
[1734539653737,0.79425906,103870.0,103860.0,0.048153]
[1734539654328,0.74610806,103870.0,103860.0,0.048153]
[1734539654831,0.79426006,103870.0,103860.0,0.048153]
[1734539655038,0.74610806,103870.0,103860.0,0.048153]
[1734539655338,0.5766,103870.0,103860.0,0.048153]
[1734539657234,0.83288562,103870.0,103860.0,0.048153]
[1734539658026,0.88104162,103870.0,103850.0,0.04816]
[1734539658232,0.3608,103860.0,103850.0,0.04816]
[1734539659345,0.3618,103860.0,103850.0,0.05714624]
[1734539659533,0.47576848,103860.0,103850.0,0.05714624]
[1734539659733,0.95746023,103860.0,103830.0,7.005e-05]
[1734539659932,0.7216,103840.0,103830.0,0.04823905]
[1734539660335,0.7216,103840.0,103830.0,1.6817738]
[1734539660529,0.3608,103850.0,103840.0,0.048166]
[1734539660733,0.47676848,103860.0,103830.0,1.6817738]
[1734539660734,0.52492548,103860.0,103850.0,0.048162]
[1734539660934,0.409957,103860.0,103850.0,0.048162]
[1734539661337,0.048162,103850.0,103840.0,0.048165]
[1734539661533,0.048162,103850.0,103830.0,0.00907967]
[1734539661534,0.048167,103840.0,103830.0,0.00907967]
[1734539661729,0.69550175,103840.0,103830.0,7.005e-05]
[1734539661934,0.99550175,103840.0,103830.0,7.005e-05]
[1734539662630,0.048171,103830.0,103820.0,0.048172]
[1734539662846,0.408971,103830.0,103820.0,0.048172]
[1734539663035,0.482371,103830.0,103820.0,0.048172]
[1734539663432,0.482371,103830.0,103820.0,0.04807648]
[1734539663640,0.482371,103830.0,103820.0,0.04819975]
[1734539663843,0.483371,103830.0,103820.0,0.05319975]
[1734539664141,0.79689767,103830.0,103820.0,0.05319975]
[1734539664442,0.79689767,103830.0,103820.0,0.05419975]
[1734539665542,0.93043242,103830.0,103820.0,0.00612327]
[1734539666442,0.93043242,103830.0,103820.0,0.05429927]
[1734539666942,0.79689767,103830.0,103820.0,0.05429927]
[1734539667638,0.25743586,103830.0,103820.0,0.54355402]
[1734539668043,0.25743586,103830.0,103820.0,1.20435402]
[1734539668243,0.14867753,103840.0,103820.0,2.78830334]
[1734539668440,0.14867753,103840.0,103830.0,0.048171]
[1734539668636,0.47473406,103850.0,103830.0,0.048171]
[1734539668841,0.47473406,103850.0,103840.0,0.048167]
[1734539669540,0.048168,103840.0,103820.0,1.67764218]
[1734539669744,0.4353,103830.0,103820.0,0.22081418]
[1734539670047,0.4353,103830.0,103820.0,0.45050109]
[1734539670247,0.4353,103830.0,103820.0,1.94950109]
[1734539670944,0.4353,103830.0,103820.0,1.95050109]
[1734539671146,0.0745,103830.0,103820.0,1.95050109]
[1734539671332,0.0745,103830.0,103820.0,1.54929527]
[1734539672242,0.0755,103830.0,103820.0,1.55429527]
[1734539672446,0.0755,103830.0,103820.0,1.72581418]
[1734539673250,0.001,103830.0,103820.0,2.22014893]
[1734539673839,0.001,103830.0,103820.0,2.08661418]
[1734539674655,0.001,103830.0,103820.0,1.72581418]
[1734539674853,0.001,103830.0,103820.0,2.08661418]
[1734539675241,0.001,103830.0,103820.0,0.58661418]
[1734539675751,0.001,103830.0,103820.0,2.08661418]
[1734539676855,0.49533475,103830.0,103820.0,0.17764218]
[1734539677048,0.61920575,103830.0,103820.0,0.17764218]
[1734539677248,0.485671,103830.0,103820.0,0.17764218]
[1734539678456,0.485671,103830.0,103820.0,0.00612327]
[1734539679345,0.485671,103830.0,103810.0,0.01056222]
[1734539679545,0.483776,103820.0,103810.0,0.05874222]
[1734539680450,0.48387784,103820.0,103810.0,0.05885563]
[1734539680656,0.48387784,103820.0,103810.0,0.05985563]
[1734539681352,0.57013299,103820.0,103810.0,0.06185563]
[1734539681944,0.70366774,103820.0,103810.0,0.00311341]
[1734539682152,0.048181,103810.0,103800.0,1.548685]
[1734539682353,0.408981,103810.0,103800.0,1.548685]
[1734539682553,0.4386,103810.0,103800.0,1.548685]
[1734539683054,0.408969,103840.0,103810.0,0.048181]
[1734539683257,0.408969,103840.0,103830.0,0.048171]
[1734539683562,0.408969,103840.0,103830.0,1.548171]
[1734539683563,0.49421545,103840.0,103830.0,1.548171]
[1734539684150,0.49429087,103840.0,103830.0,0.048171]
[1734539684954,0.62782562,103840.0,103810.0,2.08049691]
[1734539685246,0.048175,103830.0,103820.0,0.048173]
[1734539685860,0.408975,103830.0,103820.0,0.048173]
[1734539686349,0.048175,103830.0,103820.0,0.048173]
[1734539686956,0.71579087,103840.0,103830.0,0.048171]
[1734539688161,0.71579087,103840.0,103830.0,0.049171]
[1734539689655,0.71579087,103840.0,103830.0,0.05898992]
[1734539690768,0.63054442,103840.0,103830.0,0.05898992]
[1734539690958,0.63054442,103840.0,103830.0,0.049171]
[1734539691860,0.63054442,103840.0,103830.0,0.001]
[1734539692069,0.048176,103820.0,103810.0,0.40020582]
[1734539692255,0.90331075,103820.0,103810.0,0.40020582]
[1734539692456,0.048181,103810.0,103800.0,0.28629057]
[1734539692659,0.54251575,103810.0,103800.0,0.32412823]
[1734539692962,0.84251575,103810.0,103800.0,0.28629057]
[1734539693465,0.84251575,103810.0,103800.0,0.17159057]
[1734539693771,0.048185,103800.0,103790.0,0.0005]
[1734539694071,0.54251975,103800.0,103790.0,0.0005]
[1734539694966,0.713191,103800.0,103790.0,0.0005]
[1734539695174,0.58065625,103800.0,103790.0,0.04969]
[1734539695369,0.58065625,103800.0,103790.0,0.04919]
[1734539696271,0.409985,103800.0,103790.0,0.001]
[1734539696458,0.54351975,103800.0,103790.0,0.001]
[1734539696657,0.69151975,103800.0,103790.0,0.001]
[1734539698171,0.557985,103800.0,103790.0,0.001]
[1734539698371,0.486085,103800.0,103790.0,0.04919]
[1734539698565,0.409985,103800.0,103790.0,0.04919]
[1734539699867,0.049185,103800.0,103790.0,1.54919]
[1734539700279,0.049185,103800.0,103790.0,1.58702766]
[1734539700959,0.001,103800.0,103790.0,1.58702766]
[1734539701368,0.049185,103800.0,103790.0,1.58702766]
[1734539701567,0.409985,103800.0,103790.0,1.53883766]
[1734539701772,0.54351975,103800.0,103790.0,0.001]
[1734539706487,0.17067125,103820.0,103810.0,0.408981]
[1734539706880,0.21884725,103820.0,103810.0,0.048181]
[1734539707077,0.048181,103810.0,103800.0,0.0745]
[1734539707279,0.048181,103810.0,103800.0,0.122685]
[1734539707776,0.048181,103810.0,103800.0,0.12980928]
[1734539708487,0.048181,103810.0,103800.0,1.62980928]
[1734539709484,0.048181,103810.0,103800.0,0.08162428]
[1734539709485,0.54251575,103810.0,103800.0,0.08162428]
[1734539709788,0.04819,103790.0,103780.0,0.00153644]
[1734539709984,0.40899,103790.0,103780.0,0.07433644]
[1734539710588,0.40899,103790.0,103780.0,0.08148303]
[1734539710887,0.40899,103790.0,103780.0,0.07433644]
[1734539711279,0.40999,103790.0,103780.0,0.07633644]
[1734539711481,0.77079,103790.0,103780.0,0.07633644]
[1734539711685,0.77079,103790.0,103780.0,3.3e-07]
[1734539711686,1.20432475,103790.0,103780.0,3.3e-07]
[1734539711980,1.42822475,103790.0,103780.0,3.3e-07]
[1734539712379,1.12822475,103790.0,103780.0,3.3e-07]
[1734539712575,1.42822475,103790.0,103780.0,3.3e-07]
[1734539712788,0.048195,103780.0,103770.0,0.0001152]
[1734539712983,0.54252975,103780.0,103770.0,0.0001152]
[1734539713386,0.54252975,103780.0,103770.0,0.0006152]
[1734539713789,0.408995,103780.0,103770.0,0.0006152]
[1734539713981,0.410995,103780.0,103770.0,0.0005752]
[1734539714483,0.54452975,103780.0,103770.0,7.52e-05]
[1734539714685,0.84452975,103780.0,103770.0,7.52e-05]
[1734539714894,0.84452975,103780.0,103750.0,1.6404199]
[1734539714895,0.048204,103760.0,103750.0,1.6404199]
[1734539715097,0.409004,103760.0,103750.0,1.6404199]
[1734539715281,0.3608,103770.0,103750.0,2.0012199]
[1734539715590,0.409,103770.0,103760.0,0.0482]
[1734539715791,0.0482,103770.0,103760.0,0.0483007]
[1734539716494,0.0482,103770.0,103760.0,0.0488007]
[1734539716681,0.58066725,103780.0,103770.0,0.048199]
[1734539716982,0.048196,103780.0,103770.0,0.048199]
[1734539717388,0.048199,103770.0,103760.0,7e-07]
[1734539717593,0.54253375,103770.0,103760.0,7e-07]
[1734539717790,0.84253375,103770.0,103760.0,7e-07]
[1734539717984,0.048204,103760.0,103740.0,0.00144585]
[1734539718184,0.90334275,103750.0,103740.0,0.00144585]
[1734539718787,1.05444275,103750.0,103740.0,0.00144585]
[1734539720589,0.048213,103740.0,103730.0,9.563e-05]
[1734539720887,0.542668,103740.0,103730.0,9.563e-05]
[1734539721097,0.842668,103740.0,103730.0,9.563e-05]
[1734539722398,0.842668,103740.0,103730.0,6.3e-07]
[1734539722902,0.843668,103740.0,103730.0,6.3e-07]
[1734539723086,0.543668,103740.0,103730.0,6.3e-07]
[1734539723688,0.843668,103740.0,103730.0,6.3e-07]
[1734539723893,0.850917,103740.0,103730.0,6.3e-07]
[1734539725091,0.490117,103740.0,103730.0,6.3e-07]
[1734539725288,0.490117,103740.0,103730.0,0.40901863]
[1734539725289,0.00112025,103740.0,103730.0,0.40901863]
[1734539725490,0.048212,103750.0,103740.0,0.048712]
[1734539725694,0.048212,103750.0,103740.0,1.5748]
[1734539725695,0.409012,103750.0,103740.0,1.5748]
[1734539725891,0.409012,103750.0,103740.0,1.5005]
[1734539726093,0.409012,103750.0,103740.0,0.0005]
[1734539726496,0.048213,103740.0,103730.0,0.04821663]
[1734539726793,0.409013,103740.0,103730.0,0.04821663]
[1734539726991,0.409013,103740.0,103730.0,1.54821663]
[1734539727897,0.409013,103740.0,103730.0,1.50000063]
[1734539728197,0.409013,103740.0,103730.0,1.54821863]
[1734539728595,0.40912267,103750.0,103730.0,2.04355338]
[1734539728801,0.36091267,103750.0,103740.0,0.18174775]
[1734539729094,0.00011267,103750.0,103740.0,0.54254775]
[1734539729597,0.00011267,103750.0,103740.0,0.54304775]
[1734539729794,0.40912067,103750.0,103740.0,0.048713]
[1734539729997,0.04832067,103750.0,103740.0,0.048713]
[1734539730491,0.04832067,103750.0,103740.0,0.048213]
[1734539730804,0.40912067,103750.0,103740.0,0.048213]
[1734539730995,0.04832067,103750.0,103740.0,0.048213]
[1734539731300,0.048213,103740.0,103730.0,1.91001463]
[1734539731500,0.048213,103740.0,103730.0,1.91051463]
[1734539731797,0.048213,103740.0,103730.0,1.50150063]
[1734539732101,0.409013,103740.0,103730.0,0.00050063]
[1734539732301,0.54254775,103740.0,103730.0,0.00050063]
[1734539732497,0.54354775,103740.0,103730.0,0.00200063]
[1734539732991,0.410013,103740.0,103730.0,0.00200063]
[1734539733192,0.54354775,103740.0,103730.0,0.00200063]
[1734539733492,0.54354775,103740.0,103730.0,0.00250063]
[1734539733895,0.410013,103740.0,103730.0,0.00250063]
[1734539734997,0.52292831,103740.0,103720.0,0.12176951]
[1734539735200,0.048218,103730.0,103720.0,0.12176951]
[1734539735400,0.048218,103730.0,103720.0,0.12226951]
[1734539735797,0.409018,103730.0,103720.0,0.12226951]
[1734539736000,0.409018,103730.0,103720.0,0.12237463]
[1734539736202,0.409018,103730.0,103720.0,0.12337463]
[1734539736401,0.409018,103730.0,103720.0,0.12287463]
[1734539736701,0.049218,103730.0,103720.0,0.12287463]
[1734539736896,0.410018,103730.0,103720.0,0.12287463]
[1734539737303,0.001,103730.0,103720.0,0.61720938]
[1734539737600,0.16112931,103740.0,103730.0,0.048218]
[1734539737801,0.16112931,103740.0,103730.0,0.68745275]
[1734539738002,0.11291531,103740.0,103730.0,0.68745275]
[1734539738201,0.47382798,103750.0,103740.0,0.048213]
[1734539738410,0.16123598,103750.0,103740.0,0.18174775]
[1734539738607,0.16123598,103750.0,103740.0,1.68174775]
[1734539739303,0.11325558,103760.0,103750.0,0.048208]
[1734539739504,0.11325558,103760.0,103750.0,0.18174275]
[1734539739700,0.16145958,103760.0,103750.0,0.048208]
[1734539740203,0.048208,103750.0,103740.0,1.99433475]
[1734539740403,0.409008,103750.0,103730.0,0.553917]
[1734539740600,0.3608,103750.0,103730.0,0.553917]
[1734539740801,0.048211,103750.0,103730.0,0.63923475]
[1734539741107,0.04821,103750.0,103740.0,0.18174675]
[1734539741502,0.04821,103750.0,103740.0,0.048212]
[1734539741794,0.04821,103750.0,103730.0,0.0719]
[1734539741795,0.048213,103740.0,103730.0,0.0719]
[1734539741999,0.409013,103740.0,103730.0,0.0719]
[1734539742219,0.409013,103740.0,103730.0,0.0729]
[1734539742420,0.409013,103740.0,103730.0,0.001]